bitfinex/quotes_SOLUSD_20220207
["timestamp","ask_amount","ask_price","bid_price","bid_amount"]
[1644217495972,34.52566661,118.65,118.59,40.23008159]
[1644217496170,40.52566661,118.65,118.59,40.23008159]
[1644217496370,34.52566661,118.65,118.59,40.23008159]
[1644217496770,30.9337,118.66,118.59,40.23008159]
[1644217496971,31.1837,118.66,118.59,40.23008159]
[1644217497371,30.9337,118.66,118.59,40.23008159]
[1644217497571,30.9337,118.66,118.59,40.48008159]
[1644217497777,72.28449643,118.66,118.59,40.48008159]
[1644217498171,72.28449643,118.66,118.59,40.23008159]
[1644217498986,66.28449643,118.66,118.59,40.23008159]
[1644217499590,72.53449643,118.66,118.59,40.23008159]
[1644217500988,72.53449643,118.66,118.58,23.2752]
[1644217501389,74.64010733,118.66,118.57,6.0]
[1644217501788,78.85510733,118.66,118.57,6.0]
[1644217502189,74.64010733,118.66,118.57,6.0]
[1644217502389,74.64010733,118.66,118.56,41.44774367]
[1644217502590,72.53449643,118.66,118.56,41.44774367]
[1644217503189,74.64010733,118.66,118.56,41.44774367]
[1644217503390,72.53449643,118.66,118.56,41.69774367]
[1644217503591,85.18469643,118.66,118.56,41.69774367]
[1644217503792,85.18469643,118.66,118.57,24.2611]
[1644217503989,85.18469643,118.66,118.58,44.5019503]
[1644217505190,85.18469643,118.66,118.56,6.0]
[1644217505392,85.18469643,118.66,118.57,6.0]
[1644217505593,2.1056109,118.65,118.56,6.0]
[1644217505793,12.6521,118.64,118.56,6.0]
[1644217505994,24.3506,118.63,118.55,29.001]
[1644217506195,43.03798814,118.62,118.55,69.66510796]
[1644217506594,49.28798814,118.62,118.55,69.66510796]
[1644217507795,6.25,118.62,118.55,71.48108133]
[1644217507996,12.6521,118.64,118.55,69.66510796]
[1644217507997,6.0,118.64,118.55,69.66510796]
[1644217508196,6.0,118.65,118.56,1.20293649]
[1644217508596,29.912,118.66,118.56,7.20293649]
[1644217508795,29.912,118.66,118.57,23.4649]
[1644217508998,40.63650076,118.65,118.57,68.95709537]
[1644217509197,46.88650076,118.65,118.57,74.95709537]
[1644217509396,22.9506,118.64,118.57,74.95709537]
[1644217509597,40.03321106,118.63,118.57,74.95709537]
[1644217509796,40.03321106,118.63,118.57,29.4649]
[1644217509997,46.03321106,118.63,118.57,6.0]
[1644217510197,46.03321106,118.63,118.55,7.20293649]
[1644217510397,22.9506,118.62,118.54,1.20293649]
[1644217510597,28.9506,118.62,118.54,7.20293649]
[1644217510799,44.35557351,118.61,118.55,44.61140731]
[1644217511201,50.60557351,118.61,118.55,50.61140731]
[1644217511802,0.25,118.61,118.55,50.61140731]
[1644217512002,6.25,118.61,118.55,52.42741186]
[1644217512402,6.25,118.61,118.55,50.61140731]
[1644217512803,0.25,118.61,118.55,50.61140731]
[1644217513004,42.96287249,118.6,118.55,50.61140731]
[1644217513203,49.21287249,118.6,118.55,50.61140731]
[1644217514305,0.25,118.6,118.55,50.61140731]
[1644217514504,29.2006,118.62,118.55,50.61140731]
[1644217515003,23.2006,118.62,118.55,50.61140731]
[1644217515208,63.0201691,118.62,118.55,50.61140731]
[1644217516603,23.2006,118.62,118.55,50.61140731]
[1644217516806,23.2006,118.62,118.55,50.86140731]
[1644217517004,0.25,118.62,118.55,52.0643438]
[1644217517204,24.7112,118.66,118.56,23.5785]
[1644217517603,72.68958423,118.66,118.57,42.33732843]
[1644217517804,72.43958423,118.66,118.57,42.58732843]
[1644217518003,30.7112,118.66,118.57,42.58732843]
[1644217518204,30.7112,118.66,118.58,1.81600251]
[1644217518205,24.7112,118.66,118.58,1.81600251]
[1644217518607,24.7112,118.66,118.58,8.06600251]
[1644217519006,61.51741945,118.66,118.59,39.36774709]
[1644217521208,61.76741945,118.66,118.59,45.36774709]
[1644217525609,67.76741945,118.66,118.59,6.0]
[1644217526009,67.76741945,118.66,118.58,30.6365]
[1644217526409,67.76741945,118.66,118.58,6.0]
[1644217526609,67.76741945,118.66,118.58,45.30564633]
[1644217527010,67.76741945,118.66,118.58,51.30564633]
[1644217527608,67.76741945,118.66,118.56,24.7296]
[1644217527809,67.76741945,118.66,118.56,24.9796]
[1644217528608,67.76741945,118.66,118.57,45.06958323]
[1644217532816,67.76741945,118.66,118.57,45.31958323]
[1644217533615,67.76741945,118.66,118.56,24.7296]
[1644217533816,80.41831945,118.66,118.56,24.9796]
[1644217534116,81.62076969,118.66,118.56,24.9796]
[1644217534517,80.41831945,118.66,118.56,24.9796]
[1644217534718,80.41831945,118.66,118.56,71.05691484]
[1644217535316,89.2300044,118.66,118.56,71.05691484]
[1644217535917,88.9800044,118.66,118.56,71.05691484]
[1644217536117,80.16831945,118.66,118.56,71.05691484]
[1644217536516,67.51741945,118.66,118.56,71.05691484]
[1644217536717,67.51741945,118.66,118.56,72.25985133]
[1644217536919,67.51741945,118.66,118.56,71.05691484]
[1644217537519,67.76741945,118.66,118.56,71.05691484]
[1644217543428,67.76741945,118.66,118.56,72.25985133]
[1644217543827,67.76741945,118.66,118.56,72.00985133]
[1644217544036,68.96986969,118.66,118.56,46.07731484]
[1644217544225,71.07548059,118.66,118.56,46.07731484]
[1644217544727,69.87303035,118.66,118.56,46.07731484]
[1644217544925,82.52393035,118.66,118.56,46.07731484]
[1644217545332,83.72638059,118.66,118.56,46.32731484]
[1644217545527,80.41831945,118.66,118.58,41.07628292]
[1644217546429,80.41831945,118.66,118.57,23.9543]
[1644217546629,2.1056109,118.65,118.55,25.29673649]
[1644217546831,3.55806114,118.65,118.55,24.0938]
[1644217547033,12.6527,118.64,118.55,24.0938]
[1644217547231,24.7728,118.63,118.54,28.76083649]
[1644217547532,44.73076758,118.62,118.54,23.3429]
[1644217547756,44.98076758,118.62,118.54,24.79583649]
[1644217547958,24.4036,118.61,118.54,23.3429]
[1644217548156,30.4036,118.61,118.54,23.3429]
[1644217548358,30.6536,118.61,118.54,23.3429]
[1644217548556,39.65801699,118.6,118.54,23.3429]
[1644217548856,39.90801699,118.6,118.54,23.3429]
[1644217549057,39.90801699,118.6,118.54,23.5929]
[1644217549255,39.90801699,118.6,118.54,23.3429]
[1644217549455,45.90801699,118.6,118.54,23.3429]
[1644217550960,45.90801699,118.6,118.53,1.8212747]
[1644217552361,45.90801699,118.6,118.52,23.18]
[1644217553964,45.90801699,118.6,118.52,23.43]
[1644217554764,45.65801699,118.6,118.52,23.43]
[1644217555164,45.65801699,118.6,118.52,24.63293649]
[1644217555569,45.65801699,118.6,118.52,23.43]
[1644217555768,45.65801699,118.6,118.52,23.18]
[1644217556167,45.90801699,118.6,118.52,23.18]
[1644217556368,45.90801699,118.6,118.51,1.20293649]
[1644217556566,45.90801699,118.6,118.5,24.41183649]
[1644217557567,60.67092789,118.6,118.5,23.2089]
[1644217557766,60.67092789,118.6,118.5,23.4589]
[1644217558367,60.67092789,118.6,118.5,0.25]
[1644217558770,60.67092789,118.6,118.49,50.81608454]
[1644217558771,60.67092789,118.6,118.49,51.06608454]
[1644217559668,60.67092789,118.6,118.49,49.86314805]
[1644217559868,64.88792789,118.6,118.49,49.86314805]
[1644217560870,64.88792789,118.6,118.49,6.25]
[1644217561668,64.88792789,118.6,118.49,6.0]
[1644217561871,64.88792789,118.6,118.48,43.00464319]
[1644217562069,60.67092789,118.6,118.48,43.00464319]
[1644217562671,60.67092789,118.6,118.49,23.0765]
[1644217563073,60.67092789,118.6,118.49,29.3265]
[1644217565175,60.67092789,118.6,118.5,38.42526106]
[1644217566977,69.4862032,118.6,118.5,38.42526106]
[1644217567579,63.4862032,118.6,118.5,38.42526106]
[1644217567978,63.4862032,118.6,118.5,38.67526106]
[1644217568379,63.4862032,118.6,118.5,38.42526106]
[1644217569178,69.4862032,118.6,118.5,38.42526106]
[1644217570379,69.2362032,118.6,118.5,38.42526106]
[1644217571783,69.4862032,118.6,118.49,29.0765]
[1644217571983,69.4862032,118.6,118.49,29.3265]
[1644217572785,69.4862032,118.6,118.5,36.86871592]
[1644217574012,69.2362032,118.6,118.5,36.86871592]
[1644217575384,69.4862032,118.6,118.5,36.86871592]
[1644217575585,69.4862032,118.6,118.49,29.3265]
[1644217575786,12.6587,118.58,118.49,29.3265]
[1644217575986,24.2681,118.57,118.49,29.3265]
[1644217576189,30.2681,118.57,118.49,29.3265]
[1644217576386,30.5181,118.57,118.49,29.3265]
[1644217576586,44.73076758,118.56,118.5,37.36374481]
[1644217576786,44.98076758,118.56,118.5,37.36374481]
[1644217576990,50.98076758,118.56,118.49,29.3265]
[1644217577590,50.98076758,118.56,118.49,23.0765]
[1644217578392,23.5871,118.55,118.47,1.20293649]
[1644217578693,29.8371,118.55,118.46,27.3108]
[1644217578892,12.21,118.54,118.45,1.20293649]
[1644217579093,24.5346109,118.54,118.44,1.87573161]
[1644217579295,25.6927109,118.53,118.44,0.67279512]
[1644217579494,51.86801699,118.52,118.44,0.67279512]
[1644217579693,60.22362789,118.52,118.44,0.67279512]
[1644217579995,12.667,118.51,118.44,0.67279512]
[1644217580194,67.22663031,118.5,118.44,0.67279512]
[1644217580594,73.47663031,118.5,118.44,0.67279512]
[1644217580794,85.68663031,118.5,118.44,0.67279512]
[1644217582017,98.35473031,118.5,118.44,0.67279512]
[1644217587524,98.35473031,118.5,118.44,39.85910371]
[1644217588324,98.10473031,118.5,118.44,39.85910371]
[1644217588524,85.43663031,118.5,118.44,39.85910371]
[1644217588728,73.22663031,118.5,118.44,40.10910371]
[1644217588928,50.36793031,118.5,118.44,40.10910371]
[1644217589728,50.61793031,118.5,118.44,40.10910371]
[1644217590327,50.36793031,118.5,118.44,40.10910371]
[1644217591728,50.61793031,118.5,118.44,40.10910371]
[1644217593531,50.61793031,118.5,118.44,39.85910371]
[1644217593730,50.61793031,118.5,118.44,0.67279512]
[1644217595632,12.21,118.49,118.44,0.67279512]
[1644217595832,35.8112,118.49,118.44,0.67279512]
[1644217596034,54.4805,118.49,118.44,0.67279512]
[1644217596234,40.02085426,118.48,118.44,0.67279512]
[1644217596632,46.27085426,118.48,118.44,0.67279512]
[1644217596834,17.62753822,118.56,118.45,12.21]
[1644217597037,1.20245024,118.61,118.49,16.05199999]
[1644217597235,1.20245024,118.64,118.5,12.21]
[1644217597434,1.20245024,118.64,118.5,208.96522998]
[1644217597634,54.57765024,118.66,118.51,9.42784148]
[1644217597834,54.57765024,118.66,118.53,44.0626667]
[1644217597835,33.82949063,118.65,118.53,44.0626667]
[1644217598034,33.82949063,118.65,118.54,12.21]
[1644217598235,33.82949063,118.65,118.55,42.41887569]
[1644217598434,33.82949063,118.65,118.56,12.21]
[1644217598635,33.82949063,118.65,118.57,43.15858217]
[1644217598836,33.82949063,118.65,118.57,55.61858217]
[1644217599038,33.82949063,118.65,118.57,49.40858217]
[1644217599235,33.82949063,118.65,118.57,69.2235155]
[1644217599436,39.82949063,118.65,118.57,20.06493333]
[1644217599637,39.82949063,118.65,118.55,12.21]
[1644217599838,39.82949063,118.65,118.55,18.46]
[1644217601138,39.82949063,118.65,118.55,56.48731405]
[1644217601339,40.07949063,118.65,118.55,18.46]
[1644217602340,40.07949063,118.65,118.56,43.09179679]
[1644217602539,40.07949063,118.65,118.57,12.21]
[1644217602739,40.07949063,118.65,118.57,12.46]
[1644217603140,40.07949063,118.65,118.57,12.21]
[1644217605544,40.07949063,118.65,118.58,47.52745363]
[1644217605743,40.07949063,118.65,118.59,12.21]
[1644217606144,6.25,118.65,118.59,12.21]
[1644217606547,0.25,118.65,118.59,12.21]
[1644217606748,6.0,118.65,118.59,12.21]
[1644217607146,6.25,118.65,118.59,12.21]
[1644217607346,0.25,118.65,118.59,12.21]
[1644217607546,6.25,118.65,118.59,12.21]
[1644217607778,5.50611052,118.64,118.59,12.21]
[1644217608177,11.75611052,118.64,118.59,12.21]
[1644217608779,87.0,118.63,118.55,152.58]
[1644217608984,13.86172142,118.64,118.53,4.215]
[1644217609180,2.1056109,118.62,118.54,12.21]
[1644217609587,6.25,118.62,118.54,12.21]
[1644217609781,38.86181979,118.61,118.54,50.64928295]
[1644217610187,2.1056109,118.62,118.54,50.64928295]
[1644217610384,52.6072,118.66,118.54,50.64928295]
[1644217610385,2.1056109,118.64,118.54,50.89928295]
[1644217610583,6.0,118.62,118.54,50.64928295]
[1644217611288,31.73413136,118.63,118.54,50.64928295]
[1644217611689,40.08974226,118.63,118.54,50.64928295]
[1644217612384,8.3556109,118.63,118.54,50.64928295]
[1644217612583,8.3556109,118.63,118.54,56.89928295]
[1644217612783,8.1056109,118.63,118.54,56.89928295]
[1644217613184,6.0,118.63,118.54,209.47928295]
[1644217613584,52.47251083,118.65,118.54,209.47928295]
[1644217613786,8.1056109,118.65,118.54,209.47928295]
[1644217613985,2.1056109,118.64,118.54,209.47928295]
[1644217614184,8.1056109,118.64,118.54,209.47928295]
[1644217614591,8.3556109,118.64,118.54,209.47928295]
[1644217615086,42.36274524,118.64,118.54,209.47928295]
[1644217616488,42.36274524,118.64,118.54,209.43302295]
[1644217618589,42.36274524,118.64,118.54,209.37096295]
[1644217620690,8.3556109,118.64,118.54,209.37096295]
[1644217621693,45.36253142,118.64,118.54,209.37096295]
[1644217621891,45.36253142,118.64,118.54,56.79096295]
[1644217625897,1.20245024,118.63,118.54,56.79096295]
[1644217626097,7.20245024,118.63,118.54,56.79096295]
[1644217626297,7.45245024,118.63,118.54,56.79096295]
[1644217628498,6.95245024,118.63,118.54,56.79096295]
[1644217629399,0.95245024,118.63,118.54,56.79096295]
[1644217629599,6.95245024,118.63,118.54,56.79096295]
[1644217630307,0.95245024,118.63,118.54,56.79096295]
[1644217630500,0.70245024,118.63,118.54,56.79096295]
[1644217631103,2.40538068,118.67,118.56,152.58]
[1644217631302,2.40538068,118.7,118.57,18.41156]
[1644217631504,2.40538068,118.71,118.57,177.01646817]
[1644217631707,34.28847502,118.7,118.58,39.4162907]
[1644217631907,34.28847502,118.7,118.59,12.21]
[1644217632107,34.28847502,118.7,118.6,35.28786932]
[1644217632308,34.28847502,118.7,118.61,12.21]
[1644217632509,34.28847502,118.7,118.62,47.19514097]
[1644217632709,34.28847502,118.7,118.62,12.46]
[1644217633208,34.53847502,118.7,118.62,18.46]
[1644217633610,40.53847502,118.7,118.62,18.46]
[1644217634033,34.53847502,118.7,118.62,18.46]
[1644217634234,40.53847502,118.7,118.62,18.46]
[1644217634434,34.53847502,118.7,118.62,18.46]
[1644217634632,40.53847502,118.7,118.62,20.535]
[1644217634833,40.53847502,118.7,118.62,26.535]
[1644217635033,40.53847502,118.7,118.62,20.285]
[1644217635234,34.53847502,118.7,118.62,20.285]
[1644217635637,40.53847502,118.7,118.62,20.285]
[1644217635835,34.53847502,118.7,118.62,12.21]
[1644217636034,40.53847502,118.7,118.62,12.21]
[1644217636435,42.64408592,118.7,118.62,12.21]
[1644217637236,42.64408592,118.7,118.58,24.174]
[1644217637435,42.64408592,118.7,118.57,18.41156]
[1644217637436,24.9409,118.69,118.57,18.41156]
[1644217637637,58.3577,118.69,118.57,12.21]
[1644217637837,2.1056109,118.68,118.57,12.21]
[1644217638241,10.07945529,118.67,118.57,55.67770073]
[1644217638437,35.02035529,118.67,118.57,55.67770073]
[1644217638636,41.27035529,118.67,118.57,61.67770073]
[1644217639038,41.27035529,118.67,118.57,55.67770073]
[1644217639239,41.27035529,118.67,118.57,18.21]
[1644217639438,41.27035529,118.67,118.57,12.21]
[1644217639639,41.27035529,118.67,118.57,18.21]
[1644217639838,43.37596619,118.67,118.56,23.1104]
[1644217640039,43.37596619,118.67,118.56,29.3604]
[1644217640641,43.37596619,118.67,118.56,69.06607213]
[1644217643141,43.12596619,118.67,118.56,69.06607213]
[1644217643342,43.12596619,118.67,118.57,12.21]
[1644217643543,43.12596619,118.67,118.58,40.55141768]
[1644217644742,43.37596619,118.67,118.58,40.55141768]
[1644217646744,43.12596619,118.67,118.58,40.55141768]
[1644217646948,43.12596619,118.67,118.58,40.80141768]
[1644217647251,43.12596619,118.67,118.58,40.55141768]
[1644217647447,43.12596619,118.67,118.58,40.80141768]
[1644217647653,23.2028,118.69,118.58,59.01141768]
[1644217647848,23.2028,118.69,118.58,60.81777501]
[1644217648048,29.2028,118.69,118.58,60.81777501]
[1644217648347,29.4528,118.69,118.58,60.81777501]
[1644217648751,38.83348929,118.68,118.58,60.81777501]
[1644217649147,68.04768929,118.68,118.58,60.81777501]
[1644217650649,68.04768929,118.68,118.58,60.56777501]
[1644217652050,68.04768929,118.68,118.58,60.81777501]
[1644217652452,62.04768929,118.68,118.58,60.81777501]
[1644217652954,39.08348929,118.68,118.58,60.81777501]
[1644217653353,39.08348929,118.68,118.58,73.46157501]
[1644217653557,45.08348929,118.68,118.58,60.81777501]
[1644217653753,45.08348929,118.68,118.58,59.01141768]
[1644217653953,23.199,118.67,118.58,59.01141768]
[1644217654152,5.53444102,118.66,118.58,59.01141768]
[1644217654357,5.78444102,118.66,118.58,53.01141768]
[1644217654954,5.78444102,118.66,118.58,12.46]
[1644217655554,11.78444102,118.66,118.58,12.46]
[1644217655954,11.78444102,118.66,118.58,18.46]
[1644217656565,11.78444102,118.66,118.58,12.46]
[1644217656756,11.78444102,118.66,118.58,12.21]
[1644217657157,5.78444102,118.66,118.58,12.21]
[1644217657356,5.78444102,118.66,118.58,12.46]
[1644217657958,5.78444102,118.66,118.59,35.62588604]
[1644217658157,23.199,118.67,118.59,47.83588604]
[1644217658361,23.199,118.67,118.59,48.08588604]
[1644217658559,23.2028,118.69,118.59,48.08588604]
[1644217659060,43.18296362,118.68,118.59,48.08588604]
[1644217659459,49.43296362,118.68,118.59,48.08588604]
[1644217660659,43.43296362,118.68,118.59,48.08588604]
[1644217661661,49.43296362,118.68,118.59,12.46]
[1644217661864,49.43296362,118.68,118.56,23.1104]
[1644217662063,23.9224,118.67,118.57,12.21]
[1644217662262,24.1724,118.67,118.57,12.21]
[1644217662461,30.1724,118.67,118.57,12.21]
[1644217662862,30.1724,118.67,118.56,29.1104]
[1644217662863,1.18496669,118.66,118.56,29.1104]
[1644217663262,7.43496669,118.66,118.56,29.3604]
[1644217663664,40.12081494,118.64,118.56,29.3604]
[1644217663868,40.37081494,118.64,118.56,29.3604]
[1644217664072,24.2812,118.65,118.57,44.41808483]
[1644217664263,24.2812,118.65,118.57,56.87808483]
[1644217664464,24.2812,118.65,118.57,62.87808483]
[1644217665064,35.65321758,118.64,118.57,62.87808483]
[1644217665669,35.65321758,118.64,118.57,56.87808483]
[1644217665868,35.65321758,118.64,118.57,18.46]
[1644217666069,41.65321758,118.64,118.56,23.1104]
[1644217666372,43.75882848,118.64,118.55,22.6533]
[1644217666568,43.75882848,118.64,118.51,22.705]
[1644217666569,55.96882848,118.64,118.51,22.705]
[1644217666769,8.71471273,118.62,118.52,47.36965519]
[1644217667168,8.96471273,118.62,118.52,53.36965519]
[1644217667668,14.96471273,118.62,118.51,12.21]
[1644217667888,23.836,118.61,118.5,12.21]
[1644217668188,31.9416109,118.61,118.49,64.0835]
[1644217668388,32.1916109,118.61,118.49,64.0835]
[1644217668687,35.65321758,118.6,118.5,48.0010727]
[1644217669089,41.65321758,118.6,118.5,54.0010727]
[1644217669287,41.65321758,118.6,118.5,66.2110727]
[1644217669690,41.65321758,118.6,118.5,66.4610727]
[1644217670289,41.90321758,118.6,118.5,66.4610727]
[1644217672692,41.90321758,118.6,118.5,12.46]
[1644217673493,41.65321758,118.6,118.5,12.46]
[1644217674096,41.65321758,118.6,118.51,46.85863513]
[1644217674294,41.65321758,118.6,118.51,47.10863513]
[1644217674494,41.65321758,118.6,118.51,53.10863513]
[1644217674696,35.65321758,118.6,118.51,53.10863513]
[1644217675697,41.65321758,118.6,118.51,53.10863513]
[1644217675996,41.65321758,118.6,118.51,6.25]
[1644217676196,41.65321758,118.6,118.51,0.25]
[1644217676397,41.65321758,118.6,118.5,18.46]
[1644217676699,41.90321758,118.6,118.5,18.46]
[1644217677098,41.90321758,118.6,118.51,40.92332129]
[1644217677297,41.90321758,118.6,118.51,41.17332129]
[1644217677497,41.90321758,118.6,118.51,47.17332129]
[1644217677697,35.90321758,118.6,118.52,12.21]
[1644217677901,23.836,118.61,118.53,39.40551076]
[1644217678101,29.836,118.61,118.53,57.61551076]
[1644217678299,23.836,118.61,118.53,18.21]
[1644217678498,29.836,118.61,118.53,12.21]
[1644217678698,29.836,118.61,118.5,12.21]
[1644217679098,29.836,118.61,118.5,18.21]
[1644217679300,40.0331141,118.6,118.51,42.07091513]
[1644217679700,46.2831141,118.6,118.51,48.32091513]
[1644217679901,46.2831141,118.6,118.51,42.32091513]
[1644217680100,46.2831141,118.6,118.51,48.32091513]
[1644217680301,46.2831141,118.6,118.51,42.32091513]
[1644217680601,46.2831141,118.6,118.51,48.32091513]
[1644217680802,46.2831141,118.6,118.51,42.32091513]
[1644217681203,46.2831141,118.6,118.51,0.25]
[1644217681402,46.2831141,118.6,118.5,18.46]
[1644217682005,46.2831141,118.6,118.5,18.21]
[1644217682302,48.388725,118.6,118.49,47.6575]
[1644217682502,62.350725,118.6,118.49,23.0137]
[1644217682703,74.560725,118.6,118.46,35.9915]
[1644217682903,0.30748675,118.58,118.45,36.951]
[1644217683102,16.428,118.57,118.43,12.21]
[1644217683305,4.33481621,118.56,118.44,47.58250946]
[1644217683704,10.58481621,118.56,118.44,47.58250946]
[1644217683903,31.16936664,118.54,118.44,47.58250946]
[1644217684104,37.16936664,118.54,118.44,53.83250946]
[1644217684307,39.52497754,118.54,118.44,53.58250946]
[1644217684506,39.52497754,118.54,118.42,12.21]
[1644217684704,23.2103,118.53,118.39,69.01851151]
[1644217684906,35.4203,118.53,118.39,66.94349]
[1644217685105,43.7759109,118.53,118.39,66.94349]
[1644217685505,36.02196367,118.52,118.4,47.45469395]
[1644217685705,36.02196367,118.52,118.4,77.17298239]
[1644217686005,42.02196367,118.52,118.4,65.87515395]
[1644217686204,42.02196367,118.52,118.4,71.87515395]
[1644217686404,42.02196367,118.52,118.4,72.12515395]
[1644217687108,42.27196367,118.52,118.4,72.12515395]
[1644217687508,31.16936664,118.5,118.4,65.91469395]
[1644217687708,37.41936664,118.5,118.4,65.91469395]
[1644217687910,31.41936664,118.5,118.4,65.91469395]
[1644217688308,31.16936664,118.5,118.4,65.91469395]
[1644217688911,31.16936664,118.5,118.4,65.66469395]
[1644217689511,13.19856367,118.48,118.4,65.66469395]
[1644217689711,13.44856367,118.48,118.4,65.66469395]
[1644217690310,13.44856367,118.48,118.4,65.91469395]
[1644217691112,0.25,118.48,118.4,65.91469395]
[1644217691312,22.7608,118.49,118.4,65.91469395]
[1644217693213,8.07904539,118.48,118.4,65.91469395]
[1644217693713,0.25,118.48,118.4,65.91469395]
[1644217694616,0.25,118.48,118.41,24.521]
[1644217694914,64.44889303,118.52,118.42,53.7592766]
[1644217695113,28.8234,118.52,118.42,59.7592766]
[1644217695317,28.8234,118.52,118.42,60.0092766]
[1644217695514,6.0,118.52,118.42,66.2186866]
[1644217695814,29.6903,118.55,118.42,80.68101993]
[1644217696013,29.6903,118.55,118.43,24.9191]
[1644217696214,40.84300934,118.54,118.44,39.95721834]
[1644217696614,46.84300934,118.54,118.44,40.20721834]
[1644217697115,3.52492097,118.52,118.44,40.20721834]
[1644217697318,3.77492097,118.52,118.44,40.20721834]
[1644217698115,3.77492097,118.52,118.44,39.95721834]
[1644217700315,3.77492097,118.52,118.43,43.1291]
[1644217700516,9.77492097,118.52,118.43,37.3791]
[1644217701115,24.2589,118.51,118.43,37.3791]
[1644217701317,34.69986651,118.5,118.43,78.07875558]
[1644217701717,34.94986651,118.5,118.43,78.07875558]
[1644217703322,34.94986651,118.5,118.43,37.1291]
[1644217703520,34.94986651,118.5,118.43,12.21]
[1644217703721,34.94986651,118.5,118.43,12.46]
[1644217703922,34.94986651,118.5,118.43,12.21]
[1644217704321,34.94986651,118.5,118.43,56.40758909]
[1644217704522,34.94986651,118.5,118.43,56.65758909]
[1644217705324,34.69986651,118.5,118.43,56.40758909]
[1644217705722,34.69986651,118.5,118.43,12.21]
[1644217706725,34.94986651,118.5,118.43,12.21]
[1644217707026,34.94986651,118.5,118.41,23.7407]
[1644217707324,24.8541,118.49,118.41,29.7407]
[1644217707525,24.8541,118.49,118.41,29.9907]
[1644217707729,24.8541,118.49,118.41,23.7407]
[1644217707730,25.1041,118.49,118.41,23.7407]
[1644217707925,9.6680638,118.48,118.41,23.7407]
[1644217708224,9.9180638,118.48,118.41,23.7407]
[1644217709626,15.9180638,118.48,118.41,23.7407]
[1644217710828,15.9180638,118.48,118.37,18.83687298]
[1644217711028,23.9747,118.47,118.39,6.25]
[1644217711227,24.2247,118.47,118.37,35.173]
[1644217711428,30.2247,118.47,118.38,6.0]
[1644217711627,30.2247,118.47,118.37,30.952]
[1644217711827,34.69986651,118.46,118.37,30.952]
[1644217712229,40.94986651,118.46,118.37,30.952]
[1644217712627,40.94986651,118.46,118.37,31.202]
[1644217713027,40.94986651,118.46,118.37,30.952]
[1644217713827,40.94986651,118.46,118.37,24.952]
[1644217715435,40.94986651,118.46,118.36,0.67279512]
[1644217715634,87.77427741,118.46,118.36,0.17279512]
[1644217717035,100.44827741,118.46,118.36,0.17279512]
[1644217717636,85.66866651,118.46,118.36,0.17279512]
[1644217719535,77.14866651,118.46,118.36,0.17279512]
[1644217719736,64.93866651,118.46,118.36,0.17279512]
[1644217721440,58.93866651,118.46,118.36,0.17279512]
[1644217721637,58.68866651,118.46,118.36,0.17279512]
[1644217722440,58.68866651,118.46,118.37,42.70587348]
[1644217722740,64.68866651,118.46,118.37,42.95587348]
[1644217723140,64.93866651,118.46,118.37,42.95587348]
[1644217723338,64.93866651,118.46,118.37,42.70587348]
[1644217723741,64.93866651,118.46,118.36,0.17279512]
[1644217724062,64.68866651,118.46,118.36,0.17279512]
[1644217724241,64.68866651,118.46,118.35,4.222]
[1644217724439,64.68866651,118.46,118.35,10.222]
[1644217724640,64.68866651,118.46,118.36,24.45]
[1644217724939,64.68866651,118.46,118.37,38.87253135]
[1644217725345,64.93866651,118.46,118.37,38.87253135]
[1644217726744,64.93866651,118.46,118.37,39.12253135]
[1644217727945,64.93866651,118.46,118.36,24.45]
[1644217728144,67.04427741,118.46,118.36,24.45]
[1644217729144,67.04427741,118.46,118.35,41.85210893]
[1644217732351,67.04427741,118.46,118.34,26.20216051]
[1644217732548,67.04427741,118.46,118.34,32.20216051]
[1644217733356,67.04427741,118.46,118.34,76.99583014]
[1644217733556,67.04427741,118.46,118.34,75.18866963]
[1644217734654,67.04427741,118.46,118.34,75.43866963]
[1644217737256,79.71847741,118.46,118.34,75.43866963]
[1644217738460,79.71847741,118.46,118.34,30.645]
[1644217738757,79.71847741,118.46,118.33,12.21]
[1644217738957,79.71847741,118.46,118.32,4.20844992]
[1644217738958,80.64677786,118.45,118.32,2.40587298]
[1644217739178,80.64677786,118.45,118.31,0.17279512]
[1644217739179,12.6789,118.41,118.31,0.17279512]
[1644217739379,44.6252638,118.4,118.31,0.17279512]
[1644217739777,52.9808747,118.4,118.31,0.17279512]